bitfinex/quotes_SOLUSD_20240922
["timestamp","ask_amount","ask_price","bid_price","bid_amount"]
[1727046308854,20.0,145.57,145.5,0.4399472]
[1727046309145,23.776884,145.55,145.5,0.4399472]
[1727046309934,30.647684,145.55,145.5,7.3126472]
[1727046310152,6.8714,145.53,145.5,0.4399472]
[1727046310949,6.8719,145.52,145.5,0.4399472]
[1727046312355,30.774674,145.51,145.5,0.4399472]
[1727046312826,50.774674,145.51,145.5,0.4399472]
[1727046313253,30.775674,145.49,145.48,0.0622526]
[1727046313762,23.776884,145.49,145.48,0.0622526]
[1727046314132,30.650184,145.49,145.48,0.0622526]
[1727046314334,30.775674,145.49,145.48,0.0622526]
[1727046315738,43.902374,145.48,145.45,0.3500395]
[1727046315941,20.12549,145.48,145.45,0.3500395]
[1727046316159,50.651584,145.46,145.45,0.3500395]
[1727046317060,50.778474,145.43,145.42,0.0899077]
[1727046317360,50.778474,145.43,145.39,0.0622526]
[1727046317361,50.905364,145.4,145.39,0.0622526]
[1727046317580,50.906364,145.38,145.37,0.3780739]
[1727046317858,50.906364,145.38,145.37,0.4887311]
[1727046317859,50.780874,145.38,145.37,0.4887311]
[1727046318159,20.0,145.38,145.37,0.4887311]
[1727046318353,50.655384,145.38,145.37,0.4887311]
[1727046319058,50.655384,145.38,145.33,0.0786388]
[1727046319059,30.656084,145.37,145.33,0.0786388]
[1727046319355,32.261,145.43,145.33,0.0786388]
[1727046319657,20.0,145.43,145.34,17.2]
[1727046320145,6.8785,145.38,145.34,17.2]
[1727046320343,20.0,145.41,145.33,0.0786388]
[1727046320551,6.8785,145.38,145.33,6.9592388]
[1727046321059,6.8792,145.37,145.33,0.0786388]
[1727046321358,20.0,145.41,145.33,0.0786388]
[1727046321359,6.8785,145.38,145.33,0.0786388]
[1727046322567,23.902374,145.4,145.33,0.0786388]
[1727046322568,6.8804,145.34,145.33,0.0786388]
[1727046322776,0.12549,145.35,145.33,0.0786388]
[1727046322958,20.0,145.37,145.33,0.0786388]
[1727046323547,23.902374,145.39,145.33,0.0786388]
[1727046323866,23.776884,145.37,145.33,0.0786388]
[1727046324048,20.0,145.38,145.33,6.9594388]
[1727046324565,23.776884,145.38,145.33,6.9594388]
[1727046324866,11.31434376,145.4,145.37,6.8789]
[1727046324867,11.18885376,145.4,145.37,6.8789]
[1727046325166,11.18885376,145.4,145.38,6.2044]
[1727046325367,6.8766,145.42,145.38,6.2044]
[1727046325549,6.8772,145.41,145.37,15.5125]
[1727046325755,6.8766,145.42,145.37,15.5125]
[1727046325959,6.8771,145.41,145.37,15.5125]
[1727046326546,6.8783,145.39,145.37,15.5125]
[1727046326866,6.8775,145.41,145.37,15.5125]
[1727046327069,20.25098,145.45,145.37,15.5125]
[1727046327070,20.12549,145.43,145.37,15.5125]
[1727046327269,23.776884,145.42,145.38,6.8783]
[1727046327473,6.8761,145.44,145.38,6.8783]
[1727046328168,10.97106016,145.47,145.37,15.5125]
[1727046328371,6.8748,145.46,145.38,17.1961]
[1727046328961,6.8758,145.44,145.39,6.8779]
[1727046329345,35.26330655,145.48,145.37,15.5125]
[1727046329567,11.03853747,145.47,145.37,15.5125]
[1727046329956,20.0,145.46,145.37,15.5125]
[1727046330348,6.8767,145.42,145.37,15.5125]
[1727046330557,6.8772,145.41,145.37,15.5125]
[1727046330875,20.0,145.44,145.37,15.5125]
[1727046331078,23.902374,145.43,145.39,6.878]
[1727046331253,20.0,145.44,145.39,6.878]
[1727046331453,6.8752,145.46,145.4,6.8773]
[1727046331654,6.8752,145.46,145.41,6.877]
[1727046331860,26.8747,145.46,145.4,6.8775]
[1727046332055,6.8754,145.45,145.4,6.8775]
[1727046332266,11.22991263,145.47,145.39,17.194]
[1727046332551,11.22991263,145.47,145.37,15.5125]
[1727046332552,6.8766,145.42,145.37,22.3914]
[1727046332756,11.22991263,145.47,145.37,22.3914]
[1727046332757,28.41651263,145.47,145.37,15.5125]
[1727046332958,6.8771,145.41,145.37,15.5125]
[1727046333851,44.027864,145.46,145.37,15.5125]
[1727046334082,6.8752,145.45,145.38,17.1961]
[1727046334262,20.0,145.46,145.39,6.8779]
[1727046334469,20.0,145.46,145.39,17.1939]
[1727046334770,6.8756,145.45,145.4,6.8775]
[1727046335785,6.8752,145.45,145.4,6.8774]
[1727046336481,23.776884,145.46,145.42,6.8765]
[1727046336683,18.10421263,145.47,145.42,13.4786]
[1727046337782,6.8738,145.48,145.43,6.8761]
[1727046338073,6.8738,145.48,145.43,8.2511101]
[1727046338279,6.8742,145.47,145.43,6.8761]
[1727046340852,6.8743,145.47,145.42,13.4786]
[1727046344358,6.8738,145.48,145.43,6.8758]
[1727046344973,6.8734,145.49,145.44,23.4676]
[1727046345275,30.649784,145.5,145.46,6.8747]
[1727046345482,6.8729,145.5,145.45,6.8751]
[1727046347065,18.13996394,145.51,145.45,17.1872]
[1727046347281,11.26756394,145.51,145.47,17.1847]
[1727046347584,0.3780739,145.52,145.48,6.8736]
[1727046348178,6.8724,145.51,145.47,24.0589]
[1727046348382,6.8737,145.49,145.44,40.6562]
[1727046348678,0.3780739,145.52,145.44,33.7808]
[1727046348879,23.776884,145.49,145.44,16.5921]
[1727046349184,20.0,145.48,145.44,16.5921]
[1727046349360,0.3780739,145.52,145.45,18.5621166]
[1727046349688,43.776884,145.51,145.45,17.1871]
[1727046349889,0.12549,145.5,145.44,16.5921]
[1727046350068,23.776884,145.49,145.44,16.5921]
[1727046350265,6.8733,145.5,145.44,16.5921]
[1727046350466,43.776884,145.51,145.44,33.7801]
[1727046350786,0.3780739,145.52,145.47,6.8742]
[1727046350984,0.3780739,145.52,145.44,6.8755]
[1727046350985,20.0,145.5,145.44,6.8755]
[1727046351366,20.0,145.5,145.45,6.8751]
[1727046353285,20.12549,145.5,145.43,23.0316]
[1727046353581,0.3780739,145.52,145.47,6.874]
[1727046354087,0.3780739,145.52,145.49,6.8732]
[1727046354595,0.3780739,145.52,145.5,8.24724693]
[1727046354765,0.3780739,145.52,145.48,6.8733]
[1727046354961,0.3780739,145.52,145.47,24.0598]
[1727046355389,0.3780739,145.52,145.48,1.12287861]
[1727046355901,0.3780739,145.52,145.48,0.12549]
[1727046356197,0.3780739,145.52,145.51,6.8723]
[1727046360490,0.3780739,145.52,145.5,23.0316]
[1727046361172,0.3780739,145.52,145.5,6.3933]
[1727046361364,0.3780739,145.52,145.47,17.1856]
[1727046361589,0.3780739,145.52,145.47,23.5789]
[1727046361771,0.3780739,145.52,145.48,6.8737]
[1727046363790,7.2499739,145.52,145.47,30.4531]
[1727046363974,6.8732,145.5,145.45,16.6383]
[1727046364180,0.3780739,145.52,145.45,16.6383]
[1727046364380,6.8724,145.51,145.45,23.513]
[1727046364777,0.12549,145.51,145.44,6.4101]
[1727046365088,0.12549,145.51,145.41,33.8303]
[1727046365291,24.027864,145.51,145.41,16.6379]
[1727046365490,6.8758,145.44,145.41,16.6379]
[1727046365794,59.995464,145.49,145.41,16.6379]
[1727046366397,6.8757,145.44,145.41,16.6379]
[1727046368204,23.776884,145.43,145.41,16.6379]
[1727046368376,0.12549,145.42,145.41,16.6379]
[1727046368704,30.779474,145.41,145.4,6.4101]
[1727046369987,20.0,145.42,145.4,6.4101]
[1727046370374,6.8766,145.42,145.4,6.4101]
[1727046370995,30.778474,145.44,145.4,6.4101]
[1727046371183,23.776884,145.42,145.4,6.4101]
[1727046371383,23.776884,145.42,145.36,17.1983]
[1727046371384,7.00279,145.41,145.36,17.1983]
[1727046371696,6.8777,145.4,145.34,6.88]
[1727046372594,0.12549,145.41,145.35,8.25548917]
[1727046372801,30.653584,145.42,145.36,6.879]
[1727046372977,30.653584,145.42,145.37,6.8789]
[1727046374396,30.653584,145.42,145.35,17.1997]
[1727046374397,6.8775,145.4,145.35,17.1997]
[1727046374797,20.12549,145.39,145.33,0.0786388]
[1727046374980,30.655384,145.38,145.33,6.9594388]
[1727046375513,26.8781,145.39,145.34,6.8803]
[1727046376380,26.8781,145.39,145.33,6.9594388]
[1727046376699,6.8786,145.38,145.33,6.9594388]
[1727046377979,6.8781,145.39,145.34,6.8803]
[1727046378398,6.8785,145.38,145.33,6.9594388]
[1727046378999,6.879,145.37,145.33,6.9594388]
[1727046379197,6.879,145.37,145.33,7.1334416]
[1727046379398,26.8784,145.39,145.33,7.1334416]
[1727046379598,7.00209,145.42,145.34,1.37594486]
[1727046379801,6.8775,145.41,145.35,17.1991]
[1727046380307,0.12549,145.42,145.34,6.8803]
[1727046380508,6.8781,145.39,145.34,6.8803]
[1727046381786,6.8775,145.4,145.35,1.37582845]
[1727046382206,6.8775,145.4,145.35,6.8798]
[1727046382706,6.8775,145.4,145.36,6.8794]
[1727046382896,6.8772,145.41,145.36,6.8794]
[1727046383097,23.902374,145.43,145.33,0.2526416]
[1727046383303,20.0,145.44,145.33,0.2526416]
[1727046383304,11.17965859,145.45,145.35,0.12549]
[1727046383517,0.1116286,145.46,145.39,24.0724]
[1727046384511,6.8759,145.44,145.39,24.0724]
[1727046384912,6.8759,145.44,145.4,8.25274312]
[1727046385212,6.8762,145.43,145.39,24.0727]
[1727046385585,6.8766,145.42,145.38,6.8784]
[1727046386288,6.8771,145.41,145.37,6.8789]
[1727046386895,6.8771,145.41,145.36,24.0771]
[1727046387305,6.8771,145.41,145.37,6.8789]
[1727046387615,17.1892,145.44,145.36,17.1981]
[1727046387784,30.653584,145.42,145.37,6.8789]
[1727046387984,6.8767,145.42,145.37,6.8789]
[1727046388402,43.902374,145.45,145.39,6.8777]
[1727046388614,6.8761,145.44,145.4,6.8774]
[1727046388785,6.8761,145.44,145.39,6.8779]
[1727046388985,6.8762,145.43,145.39,6.8779]
[1727046390009,6.8757,145.44,145.39,6.8779]
[1727046390323,6.8766,145.42,145.37,6.8788]
[1727046390514,6.8766,145.42,145.38,6.8784]
[1727046390906,6.8762,145.43,145.38,6.8784]
[1727046392612,6.8758,145.44,145.4,6.8774]
[1727046394118,6.8774,145.41,145.37,39.525]
[1727046394415,6.8776,145.4,145.37,39.525]
[1727046394993,6.8772,145.41,145.37,39.525]
[1727046395389,6.8772,145.41,145.37,46.4039]
[1727046395713,43.776884,145.45,145.37,39.525]
[1727046395883,6.8764,145.43,145.38,6.8784]
[1727046396088,6.8764,145.43,145.39,6.8777]
[1727046396410,43.776884,145.45,145.37,39.525]
[1727046396411,6.8768,145.42,145.37,39.525]
[1727046397092,0.12549,145.44,145.35,6.8795]
[1727046397295,0.12549,145.44,145.36,6.3794]
[1727046397297,6.8778,145.4,145.36,6.3794]
[1727046398308,0.25098,145.44,145.34,23.5744]
[1727046398309,6.8786,145.38,145.34,30.4545]
[1727046398516,30.654984,145.39,145.34,30.4545]
[1727046398815,6.8776,145.4,145.35,6.8797]
[1727046399617,20.0,145.41,145.37,6.8785]
[1727046400086,6.8777,145.4,145.36,17.1981]
[1727046400291,6.8777,145.4,145.36,24.0775]
[1727046401689,30.654884,145.39,145.34,13.2537]
[1727046402501,6.8786,145.38,145.34,13.2537]
[1727046402688,6.8786,145.38,145.33,32.6441416]
[1727046402689,6.8803,145.35,145.33,0.2526416]
[1727046402998,6.8804,145.34,145.33,0.2526416]
[1727046403200,30.657284,145.34,145.33,0.2526416]
[1727046405418,37.44768,145.38,145.33,0.2526416]
[1727046405419,6.8799,145.35,145.33,0.2526416]
[1727046407522,6.8804,145.34,145.33,0.2526416]
[1727046407691,30.657284,145.34,145.33,0.2526416]
[1727046408418,30.782774,145.34,145.33,0.2526416]
[1727046410351,30.782774,145.34,145.3,0.347884]
[1727046410352,6.8818,145.31,145.3,0.347884]
[1727046410627,6.8814,145.32,145.3,0.347884]
[1727046410803,20.0,145.33,145.3,0.347884]
[1727046411004,0.12549,145.34,145.3,0.347884]
[1727046411005,6.8804,145.34,145.3,0.347884]
[1727046411726,20.0,145.31,145.3,0.347884]
[1727046411935,6.8809,145.33,145.3,0.347884]
[1727046412297,20.0,145.32,145.3,0.347884]
[1727046412804,6.8803,145.35,145.3,7.230084]
[1727046413009,6.8805,145.34,145.3,7.230084]
[1727046413413,6.8805,145.34,145.3,0.347884]
[1727046414203,6.8813,145.32,145.3,0.347884]
[1727046414706,6.8818,145.31,145.3,0.347884]
[1727046415624,6.8814,145.32,145.3,0.347884]
[1727046417435,6.881,145.33,145.3,0.347884]
[1727046417737,20.0,145.32,145.3,0.347884]
[1727046418027,26.8815,145.32,145.3,0.347884]
[1727046419332,30.658684,145.31,145.3,0.347884]
[1727046420126,6.8818,145.31,145.3,0.347884]
[1727046420812,50.658684,145.31,145.3,0.347884]
[1727046421530,50.784174,145.31,145.3,0.347884]
[1727046422328,50.658684,145.31,145.3,0.347884]
[1727046422826,20.0,145.36,145.31,6.8818]
[1727046423035,6.8818,145.31,145.3,0.347884]
[1727046424136,17.2027,145.33,145.25,0.3755391]
[1727046424137,6.8834,145.28,145.25,0.3755391]
[1727046424933,61.233164,145.31,145.25,0.3755391]
[1727046425230,6.8837,145.27,145.25,0.3755391]
[1727046425436,6.8842,145.26,145.25,0.3755391]
[1727046426013,6.8837,145.27,145.25,0.3755391]
[1727046426207,6.8842,145.26,145.25,0.3755391]
[1727046426631,6.8837,145.27,145.25,0.3755391]
[1727046426842,62.32795963,145.31,145.25,0.3755391]
[1727046427230,6.8842,145.26,145.25,0.3755391]
[1727046428320,30.786574,145.26,145.25,0.3755391]
[1727046428621,30.786574,145.26,145.22,0.0622526]
[1727046428622,6.8854,145.24,145.22,0.0622526]
[1727046428817,6.8856,145.23,145.22,0.0622526]
[1727046429016,30.662484,145.23,145.22,0.0622526]
[1727046429240,30.662484,145.23,145.2,0.2856314]
[1727046429241,7.01199,145.21,145.2,0.2856314]
[1727046429440,6.8865,145.21,145.2,0.2856314]
[1727046429920,6.8861,145.22,145.2,0.2856314]
[1727046430630,30.787574,145.24,145.2,0.2856314]
[1727046430837,20.0,145.25,145.2,7.1725314]
[1727046431140,11.1383648,145.26,145.2,0.2856314]
[1727046431326,6.8865,145.21,145.2,0.2856314]
[1727046432015,6.8875,145.19,145.15,24.1643391]
[1727046432347,28.3343698,145.24,145.16,6.8886]
[1727046432527,44.027864,145.23,145.15,31.0536391]
[1727046432838,6.8875,145.19,145.15,6.9408391]
[1727046433224,44.027864,145.23,145.15,6.9408391]
[1727046433615,44.027864,145.23,145.15,13.4542]
[1727046434219,6.8875,145.2,145.15,13.4542]
[1727046434432,44.027864,145.23,145.15,6.5653]
[1727046434433,61.242764,145.23,145.15,6.5653]
[1727046434620,6.8884,145.18,145.15,6.5653]
[1727046434820,61.242764,145.23,145.15,6.5653]
[1727046435118,61.242764,145.23,145.15,13.4546]
[1727046435328,6.8874,145.2,145.15,13.4546]
[1727046435525,6.8875,145.19,145.15,6.5653]
[1727046436058,6.8898,145.14,145.13,0.0622526]
[1727046436257,44.027864,145.2,145.13,0.0622526]
[1727046436541,6.8894,145.15,145.13,0.0622526]
[1727046436923,30.666684,145.14,145.13,0.0622526]
[1727046437317,30.917664,145.14,145.13,0.0622526]
[1727046437512,50.917664,145.14,145.13,0.0622526]
[1727046437935,50.666684,145.14,145.13,0.0622526]
[1727046438147,50.792174,145.14,145.13,0.0622526]
[1727046438444,50.917664,145.14,145.13,0.0622526]
[1727046438821,20.0,145.14,145.13,0.0622526]
[1727046439337,50.917664,145.14,145.13,0.0622526]
[1727046440841,50.917664,145.14,145.08,0.38204]
[1727046440842,23.776884,145.13,145.08,0.38204]
[1727046441347,6.8908,145.12,145.08,0.38204]
[1727046442437,0.12549,145.12,145.08,0.38204]
[1727046442624,6.8914,145.11,145.08,0.38204]
[1727046443248,20.0,145.12,145.08,7.27474]
[1727046443839,7.14128,145.14,145.08,7.27474]
[1727046443840,20.0,145.13,145.08,7.27474]
[1727046444039,24.027864,145.12,145.08,0.38204]
[1727046444431,23.902374,145.12,145.08,0.38204]
[1727046444828,7.01629,145.12,145.08,0.38204]
[1727046445149,20.0,145.13,145.08,7.27464]
[1727046445658,26.8908,145.13,145.08,0.38204]
[1727046446150,30.793374,145.12,145.08,0.38204]
[1727046446628,0.12549,145.1,145.08,0.38204]
[1727046446831,6.8922,145.09,145.08,0.38204]
[1727046448164,50.794574,145.09,145.08,0.38204]
[1727046448467,50.920064,145.09,145.08,0.38204]
[1727046449236,50.794574,145.09,145.08,0.38204]
[1727046449561,26.8922,145.09,145.08,0.38204]
[1727046449733,50.794574,145.09,145.08,0.38204]
[1727046450528,26.8922,145.09,145.08,0.38204]
[1727046450736,50.921964,145.05,145.04,0.3543849]
[1727046450960,30.924364,145.0,144.94,0.2921323]
[1727046451161,20.0,145.02,144.94,24.0733323]
[1727046451366,20.0,145.02,144.97,6.8979]
[1727046451538,26.8957,145.02,144.97,6.8979]
[1727046451941,26.8956,145.02,144.96,6.9603526]
[1727046452139,11.09982918,145.06,144.96,0.0622526]
[1727046452140,24.027864,145.04,144.96,0.0622526]
[1727046452341,6.8975,144.98,144.96,0.0622526]
[1727046452568,24.027864,145.0,144.96,0.0622526]
[1727046452858,6.8979,144.97,144.96,0.0622526]
[1727046453262,50.800274,144.97,144.96,0.0622526]
[1727046453562,20.0,144.97,144.96,0.0622526]
[1727046454236,26.8979,144.97,144.96,0.0622526]
[1727046454439,50.800274,144.97,144.96,0.0622526]
[1727046454673,50.925764,144.97,144.96,0.0622526]
[1727046455173,44.027864,144.97,144.96,0.0622526]
[1727046455360,50.925764,144.97,144.96,0.0622526]
[1727046455558,50.925764,144.97,144.93,0.2570691]
[1727046455559,23.902374,144.94,144.93,0.2570691]
[1727046455750,44.027864,144.97,144.93,0.2570691]
[1727046455751,0.12549,144.95,144.93,0.2570691]
[1727046456077,20.0,144.94,144.93,0.2570691]
[1727046456368,26.8994,144.94,144.93,0.2570691]
[1727046456673,26.8994,144.94,144.91,0.0899077]
[1727046456674,24.027864,144.93,144.91,0.0899077]
[1727046456960,6.9019,144.89,144.84,23.384]
[1727046457171,6.9023,144.88,144.84,6.1246]
[1727046457481,20.0,144.88,144.84,6.1246]
[1727046457977,20.0,144.89,144.84,6.1246]
[1727046458143,15.0932,144.93,144.84,6.1246]
[1727046458144,20.25098,144.9,144.84,6.1246]
[1727046458342,20.12549,144.88,144.84,6.1246]
[1727046458541,26.9022,144.88,144.83,6.9945077]
[1727046458870,20.0,144.9,144.84,17.2604]
[1727046459079,20.0,144.92,144.86,7.3963464]
[1727046459374,6.9017,144.9,144.86,0.4932464]
[1727046459549,20.0,144.92,144.86,0.4932464]
[1727046459748,26.9005,144.92,144.86,0.4932464]
[1727046459966,26.9005,144.92,144.86,7.3963464]
[1727046460278,7.02659,144.91,144.86,7.3963464]
[1727046460568,20.0,144.9,144.86,0.4932464]
[1727046460951,20.0,144.9,144.86,17.7500464]
[1727046461145,0.12549,144.93,144.86,17.7500464]
[1727046461146,20.0,144.93,144.88,6.1246]
[1727046461364,6.8989,144.95,144.89,24.1556]
[1727046461569,6.8985,144.96,144.89,17.2543]
[1727046461754,11.60211461,144.99,144.91,6.9007]
[1727046461944,11.60211461,144.99,144.89,17.2543]
[1727046461945,6.8979,144.98,144.92,6.9002]
[1727046462145,11.60211461,144.99,144.92,6.9002]
[1727046462669,11.60211461,144.99,144.89,0.12549]
[1727046462867,18.49951461,144.99,144.94,17.2485]
[1727046463064,6.8975,144.98,144.94,17.2485]
[1727046463268,11.60211461,144.99,144.94,17.2485]
[1727046463450,15.0932,145.05,144.95,6.1246]
[1727046463952,15.29911139,145.04,144.97,6.8978]
[1727046464159,6.8961,145.01,144.95,6.1246]
[1727046464474,6.8955,145.03,144.97,6.8977]
[1727046464782,6.8956,145.02,144.97,6.8977]
[1727046464949,6.896,145.01,144.96,6.8982]
[1727046465150,6.8955,145.03,144.96,6.8982]
[1727046465458,6.8961,145.01,144.96,6.8982]
[1727046466273,6.895,145.04,144.98,6.8974]
[1727046466471,6.895,145.04,144.99,6.8969]
[1727046466678,11.21809364,145.06,144.96,33.6456]
[1727046466679,11.21809364,145.06,144.98,17.2425]
[1727046466849,0.5209015,145.12,145.01,14.17975424]
[1727046467051,0.5209015,145.12,145.05,6.8941]
[1727046467359,0.5209015,145.12,145.03,17.2377]
[1727046467360,6.8913,145.11,145.06,6.8936]
[1727046467870,6.8913,145.11,145.03,17.2377]
[1727046467871,7.4118015,145.12,145.07,6.8931]
[1727046468183,20.0,145.11,145.07,6.8931]
[1727046468383,7.4118015,145.12,145.07,6.8931]
[1727046468587,7.4118015,145.12,145.08,6.8926]
[1727046468588,0.5209015,145.12,145.08,6.8926]
[1727046468755,0.5209015,145.12,145.09,6.8921]
[1727046469486,0.5209015,145.12,145.09,6.8918]
[1727046469660,0.5209015,145.12,145.1,6.8917]
[1727046470254,0.5209015,145.12,145.09,6.8922]
[1727046470455,0.5209015,145.12,145.1,6.8916]
[1727046471358,0.5209015,145.12,145.11,6.3635]
[1727046471583,0.5209015,145.12,145.11,13.2548]
[1727046471886,0.5209015,145.12,145.11,30.4831]
[1727046473277,0.5209015,145.12,145.11,6.3635]
[1727046473871,0.5209015,145.12,145.11,13.2548]
[1727046475078,0.5209015,145.12,145.11,13.38029]
[1727046475387,0.5209015,145.12,145.11,6.3635]
[1727046477461,0.5209015,145.12,145.07,30.4892]
[1727046477676,0.5209015,145.12,145.08,6.8927]
[1727046477888,0.5209015,145.12,145.09,6.892]
[1727046478982,0.5209015,145.12,145.09,6.8922]
[1727046480258,0.5209015,145.12,145.04,16.3169]
[1727046480259,20.5209015,145.12,145.04,16.3169]
[1727046480699,6.8923,145.09,145.04,16.3169]
[1727046480898,6.8918,145.1,145.04,23.2114]
[1727046481216,6.8923,145.09,145.04,23.2114]
[1727046481362,20.5209015,145.12,145.04,16.3169]
[1727046481565,6.8924,145.09,145.04,23.2114]
[1727046482464,6.8929,145.08,145.03,23.6002]
[1727046482879,6.8938,145.06,145.03,6.3635]
[1727046483497,6.8923,145.09,145.03,13.2581]
[1727046483802,6.8916,145.11,145.05,6.8941]
[1727046483979,6.8919,145.1,145.05,6.8941]
[1727046484473,7.4121015,145.12,145.06,6.8934]
[1727046484679,0.5209015,145.12,145.07,6.8928]
[1727046484991,0.5209015,145.12,145.08,6.8926]
[1727046485671,7.4118015,145.12,145.06,24.1265]
[1727046485872,7.4118015,145.12,145.07,6.8928]
[1727046486378,0.5209015,145.12,145.07,6.8928]
[1727046486688,0.5209015,145.12,145.08,18.60897866]
[1727046486906,0.5209015,145.12,145.08,17.2307]
[1727046487473,0.5209015,145.12,145.1,6.8917]
[1727046487785,0.5209015,145.12,145.11,7.01679]
[1727046487989,0.5209015,145.12,145.11,8.39213844]
[1727046488196,0.5209015,145.12,145.11,30.919164]
[1727046488571,0.5209015,145.12,145.11,6.8913]
[1727046488988,0.5209015,145.12,145.11,7.01679]
[1727046489198,0.5209015,145.12,145.11,30.919164]
[1727046490906,0.5209015,145.12,145.11,7.01679]
[1727046497303,0.5209015,145.12,145.11,6.8913]
[1727046498306,0.5209015,145.12,145.1,17.2283]
[1727046498507,0.5209015,145.12,145.09,6.413]
[1727046498815,0.5209015,145.12,145.08,6.8923]
[1727046499310,7.4118015,145.12,145.08,6.8923]
[1727046499515,7.4118015,145.12,145.07,24.1258]
[1727046499683,6.8914,145.11,145.07,17.2327]
[1727046499889,6.8914,145.11,145.07,24.1258]
[1727046500506,7.4118015,145.12,145.07,24.1258]
[1727046501880,6.8914,145.11,145.07,17.2327]
[1727046503904,24.2977855,145.12,145.04,24.1301]
[1727046504316,6.8928,145.08,145.04,17.236]
[1727046504612,6.8928,145.08,145.04,24.1304]
[1727046506405,6.8923,145.09,145.04,24.1304]
[1727046506887,16.3784,145.11,145.04,17.236]
[1727046507088,16.3784,145.11,145.05,6.894]
[1727046507506,16.3784,145.11,145.04,17.236]
[1727046507706,6.8929,145.08,145.04,17.236]
[1727046507931,6.8928,145.08,145.03,6.8947]
[1727046508093,16.3784,145.11,145.02,0.12549]
[1727046508409,6.8921,145.1,145.05,6.894]
[1727046508618,6.893,145.08,145.03,24.1315]
[1727046509709,6.893,145.08,144.99,32.9683]
[1727046509710,20.0,145.08,144.99,32.9683]
[1727046510018,6.8951,145.03,144.98,13.2768]
[1727046510393,6.8946,145.05,144.99,6.8968]
[1727046510708,6.8938,145.06,145.0,17.2404]
[1727046511101,6.8931,145.08,145.02,17.2382]
[1727046511302,20.0,145.1,145.02,17.2382]
[1727046511532,20.0,145.1,145.05,6.8941]
[1727046511533,6.8918,145.1,145.05,6.8941]
[1727046512308,16.3784,145.11,145.05,6.8941]
[1727046512502,6.8927,145.08,145.04,17.2355]
[1727046513607,7.1410262,145.08,145.04,17.2355]
[1727046513803,0.2483262,145.08,145.01,0.12549]
[1727046514028,0.2483262,145.08,145.02,17.2381]
[1727046514820,0.2483262,145.08,145.05,6.8941]
[1727046515508,0.2483262,145.08,145.06,1.37868432]
[1727046516131,0.2483262,145.08,145.07,6.8932]
[1727046517114,0.2483262,145.08,145.06,17.2334]
[1727046517825,7.1414262,145.08,145.03,24.1321]
[1727046518026,7.1414262,145.08,145.04,6.8945]
[1727046518417,0.2483262,145.08,145.04,6.8945]
[1727046519625,0.2483262,145.08,145.05,6.894]
[1727046523540,0.2483262,145.08,145.03,17.2373]
[1727046523733,6.8932,145.07,145.03,17.2373]
[1727046524337,6.8932,145.07,145.03,24.1323]
[1727046524719,6.8932,145.07,145.03,17.2373]
[1727046524919,7.1411262,145.08,145.03,24.1322]
[1727046525716,6.8934,145.07,145.03,17.2373]
[1727046526427,6.8937,145.06,145.02,6.8954]
[1727046526817,6.8933,145.07,145.02,6.8954]
[1727046528326,23.7857262,145.08,145.03,6.8947]
[1727046528629,23.7857262,145.08,145.04,6.8945]
[1727046529348,23.7857262,145.08,145.02,17.2379]
[1727046529349,16.8930262,145.08,145.05,6.8941]
[1727046529935,23.7857262,145.08,145.04,17.2357]
[1727046531358,0.2483262,145.08,145.06,17.2332]
[1727046531653,0.2483262,145.08,145.03,17.2373]
[1727046531850,0.2483262,145.08,145.05,6.8941]
[1727046532227,0.2483262,145.08,145.04,6.8946]
[1727046532434,0.2483262,145.08,145.0,50.1891]
[1727046532632,0.2483262,145.08,145.07,6.8932]
[1727046532845,0.2483262,145.08,145.06,6.8936]
[1727046534451,0.2483262,145.08,145.05,24.1289]
[1727046536850,0.2483262,145.08,145.05,17.2348]